Cogmind - Beta 12 @@@ ROGUE MODE // 2023.06.09 @ 13:45:16 Player: Jimzor Result: Destroyed by as-17891 with Assembled F-torch Performance ------------- Evolutions (0) 0 Regions Visited (2) 400 Robots Destroyed (32) 160 Value Destroyed (501) 501 Prototype IDs (0) 0 Alien Tech Used (0) 0 Bonus (0) 0 TOTAL SCORE: 1061 Bonus ------- None Cogmind --------- Core Integrity 0/250 Matter 298/300 Energy 100/100 System Corruption 3% Temperature Cool (72) Movement Hovering (120) Ox1 Location -10/Mines Parts ------- > --- POWER (1) -------- (None) > --- PROPULSION (2) --- Hover Unit > --- UTILITY (2) ------ Small Storage Unit Signal Interpreter > --- WEAPON (2) ------- Light Assault Rifle Light Assault Rifle > --- INVENTORY (8) ---- Light Nuclear Core Hover Unit Hover Unit Hover Unit Medium Storage Unit Hacking Suite Hacking Suite Makeshift Spear Peak State ------------ > --- POWER ------------ Light Ion Engine > --- PROPULSION ------- Wheel Wheel > --- UTILITY ---------- Small Storage Unit Seismic Detector > --- WEAPON ----------- Medium Laser Light Assault Rifle > --- INVENTORY -------- Light Ion Engine Wheel Wheel Wheel Wheel Improved Terrain Scanner EM Pulse Gun Mining Laser [Rating: 8] Favorites ----------- Power Light Ion Engine Engine Light Ion Engine Propulsion Hover Unit Wheel Wheel Hover Unit Hover Unit Utility Small Storage Unit Device Seismic Detector Storage Small Storage Unit Processor Signal Interpreter Weapon Light Assault Rifle Energy Gun Medium Laser Ballistic Gun Light Assault Rifle Build | -11 -10 -10 ------- Run | Jun Mat Min Slots Evolved . | . . . Power . | . . . Propulsion . | . . . Utility . | . . . Weapon . | . . . Parts Attached 27 | 9 18 . Power 2 | 1 1 . Engine 2 | 1 1 . Core . | . . . Reactor . | . . . Propulsion 14 | 3 11 . Treads . | . . . Leg . | . . . Wheel 4 | 3 1 . Hover 10 | . 10 . Flight . | . . . Utility 7 | 3 4 . Device 4 | 2 2 . Storage 2 | 1 1 . Processor 1 | . 1 . Hackware . | . . . Protection . | . . . Artifact . | . . . Weapon 4 | 2 2 . Energy Gun 1 | 1 . . Energy Cannon . | . . . Ballistic Gun 3 | 1 2 . Ballistic Cannon . | . . . Launcher . | . . . Special Weapon . | . . . Impact Weapon . | . . . Slashing Weapon . | . . . Piercing Weapon . | . . . Special Melee Weapon . | . . . Unidentified Prototypes . | . . . Parts Lost 6 | . 4 2 Power 1 | . . 1 Propulsion 4 | . 3 1 Utility 1 | . 1 . Weapon . | . . . Highest Loss Streak 3 | . 3 1 To Critical Strikes . | . . . Average Slot Usage (%) 95 | . 96 92 Engine 13 | . 14 7 Wheel 4 | . 5 . Hover 21 | . 20 28 Device 6 | . 7 . Storage 14 | . 14 14 Processor 6 | . 4 14 Energy Gun 5 | . 6 . Ballistic Gun 21 | . 21 28 Naked Turns . | . . . Heaviest Build 12 | 12 12 10 Greatest Support 26 | 26 20 12 Greatest Overweight (x) 3 | 1 3 . Average Overweight (x) . | . . . Largest Inventory Capacity 8 | 8 8 8 Average Capacity 7 | 7 8 8 Most Carried 8 | 8 8 8 Average Carried 7 | 4 7 7 Final Capacity 8 | 8 8 8 Final Carried 8 | 8 8 8 Class Distribution -------------------- 52% | Mutant 47% | Scavenger-Mutant Dominant Class ---------------- Mutant | -10/Materials Scavenger-Mutant | -10/Mines Resources | -11 -10 -10 ----------- Run | Jun Mat Min Matter Collected 583 | 296 287 . Remotely . | . . . Salvage Created 1316 | 210 1106 . Parts 76 | 17 59 . Haulers Intercepted 2 | . 2 . Recyclers Shooed 6 | . 6 . Parts Field Recycled . | . . . Retrieved Matter . | . . . Parts Self-Destructed . | . . . Prevented . | . . . Kills | -11 -10 -10 ------- Run | Jun Mat Min Combat Hostiles Destroyed 10 | . 10 . Guns 10 | . 10 . Classes Destroyed 9 | 2 7 . Worker 1 | . 1 . Builder 1 | . 1 . Tunneler 5 | 5 . . Hauler 2 | . 2 . Recycler 7 | 1 6 . Operator 3 | . 3 . Watcher 3 | . 3 . Swarmer 2 | . 2 . Grunt 8 | . 8 . Best Kill Streak 6 | 4 6 . Combat Bots Only 4 | . 4 . Max Kills in Single Turn 1 | 1 1 . Gunslinging . | . . . Exploded . | . . . Melee . | . . . Uniques/NPCs Destroyed . | . . . Combat | -11 -10 -10 -------- Run | Jun Mat Min Damage Taken 866 | . 483 383 Core 256 | . 118 138 Absorbed by Shields . | . . . Regen/Repaired (Parts) 64 | . 64 . Core Remaining (%) 100 | 100 . . Volleys Fired 103 | 16 84 3 Largest 2 | 2 2 2 Hottest 70 | 70 70 40 Shots Fired 206 | 32 168 6 Gun 206 | 32 168 6 Cannon . | . . . Launcher . | . . . Special . | . . . Kinetic 138 | 16 116 6 Thermal 68 | 16 52 . Explosive . | . . . Electromagnetic . | . . . Robot Hit Streak 10 | 9 10 2 Robot Miss Streak 6 | 2 6 2 Penetration Max . | . . . Secondary Targets 1 | . 1 . Max Gunslinging Chain 1 | . 1 . Shots Hit Robots 122 | 23 96 3 Core Hits 62 | 9 52 1 Critical Kills . | . . . Critical Parts Destroyed . | . . . Critical Strikes 1 | . 1 . Burn 1 | . 1 . Melee Attacks . | . . . Impact . | . . . Slashing . | . . . Piercing . | . . . Sneak Attacks . | . . . Combat Hostiles . | . . . Follow-up Attacks . | . . . Damage Inflicted 1212 | 237 955 20 Guns 1212 | 237 955 20 Cannons . | . . . Explosions . | . . . Melee . | . . . Ramming . | . . . Kinetic 659 | 89 550 20 Thermal 553 | 148 405 . Explosive . | . . . Electromagnetic . | . . . Impact . | . . . Slashing . | . . . Piercing . | . . . Highest Corruption 3 | . . 3 Average Corruption 3 | . . 3 Corruption Purged . | . . . Corruption Blocked . | . . . Effects 2 | . . 2 Message Errors 1 | . . 1 Data Loss (major) 1 | . . 1 Overload Shots . | . . . Overflow Damage . | . . . Projectiles . | . . . Explosions . | . . . Melee . | . . . Knockbacks . | . . . Impact . | . . . Kinetic . | . . . Secondary . | . . . Self-Inflicted Damage . | . . . Shots . | . . . Rammed . | . . . Targets Rammed . | . . . Kicked . | . . . Crushed . | . . . Highest Temperature 308 | 100 308 16 Average Temperature 83 | 43 93 6 Received Heat Transfer 387 | . 267 120 Siege Activations . | . . . Robots Corrupted . | . . . Combat Hostiles . | . . . Parts Fried 1 | . 1 . Impact Corruptions . | . . . Robots Melted . | . . . Combat Hostiles . | . . . Parts Melted . | . . . Heat Transferred 1702 | 444 1258 . Parts Sabotaged . | . . . Parts Stolen . | . . . Parts Stripped . | . . . Power Chain Reactions . | . . . Missiles Intercepted . | . . . Alert | -11 -10 -10 ------- Run | Jun Mat Min Peak Influence 358 | 30 358 112 Initial 112 | . 19 112 Average 173 | 14 213 106 Maximum Alert Level 1 | . 1 . Low Security (%) 55 | 100 40 100 Level 1 44 | . 59 . Level 2 . | . . . Level 3 . | . . . Level 4 . | . . . Level 5 . | . . . High Security . | . . . Max Security . | . . . Squads Dispatched 4 | . 3 1 Investigation 2 | . 1 1 Extermination . | . . . Reinforcement 2 | . 2 . Assault . | . . . Garrison . | . . . Intercept . | . . . Searches Triggered . | . . . Construction Impeded . | . . . Haulers Reinforced . | . . . Active Scanning Responses . | . . . Cargo Convoy Interrupts . | . . . Stealth | -11 -10 -10 --------- Run | Jun Mat Min Distress Signals . | . . . Communications Jammed . | . . . Distress Signals . | . . . Times Spotted 43 | . 27 16 Peak Tracking Total 12 | . 3 12 Tactical Retreats 3 | . . 3 Traps | -11 -10 -10 ------- Run | Jun Mat Min Traps Triggered . | . . . Indirectly . | . . . Trap Hack Attempts . | . . . Triggered . | . . . Disarmed . | . . . Reprogrammed . | . . . Reused . | . . . Traps Extracted . | . . . Installed . | . . . Triggered . | . . . Machines | -11 -10 -10 ---------- Run | Jun Mat Min Machines Disabled . | . . . Max in Single Turn . | . . . Machines Repaired . | . . . Machines Sabotaged . | . . . Overloaded Fab Kills . | . . . Hacking | -11 -10 -10 --------- Run | Jun Mat Min Machines Accessed 6 | . 5 1 Terminals 5 | . 4 1 Fabricators . | . . . Repair Stations 1 | . 1 . Recycling Units . | . . . Scanalyzers . | . . . Garrison Access . | . . . Total Hacks 21 | . 16 5 Successful 10 | . 10 . Failed 11 | . 6 5 Catastrophic 1 | . 1 . Database Lockouts . | . . . Manual 7 | . 7 . Terminals 17 | . 12 5 Fabricators . | . . . Repair Stations 4 | . 4 . Recycling Units . | . . . Scanalyzers . | . . . Garrison Access . | . . . Terminal Hacks 7 | . 7 . Emergency Access Points 2 | . 2 . Terminal Index 1 | . 1 . Locate Traps 2 | . 2 . Zone Layout 2 | . 2 . Fabricator Hacks . | . . . Repair Station Hacks 3 | . 3 . Scan Component 2 | . 2 . Repair 1 | . 1 . Recycling Unit Hacks . | . . . Scanalyzer . | . . . Garrison Access Hacks . | . . . Unauthorized Hacks . | . . . Terminals . | . . . Fabricators . | . . . Repair Stations . | . . . Recycling Units . | . . . Scanalyzers . | . . . Garrison Access . | . . . Data Cores Recovered 2 | . 2 . Used 2 | . 2 . Hacking Detections 6 | . 5 1 Full Trace Events 3 | . 2 1 Feedback Events . | . . . Feedback Blocked . | . . . Robot Schematics Acquired . | . . . Robots Built . | . . . Authchips . | . . . Time . | . . . Total Robot Build Rating . | . . . Part Schematics Acquired . | . . . Parts Built . | . . . Authchips . | . . . Time . | . . . Total Part Build Rating . | . . . Parts Repaired 1 | . 1 . Time 26 | . 26 . Parts Recycled . | . . . Recycled Matter . | . . . Retrieved Matter . | . . . Retrieved Components . | . . . Parts Scanalyzed . | . . . Part Schematics Acquired . | . . . Parts Damaged . | . . . Bothacking | -11 -10 -10 ------------ Run | Jun Mat Min Used RIF Installer . | . . . Robots Hacked . | . . . Non-combat . | . . . Combat . | . . . Robot Hacks Applied . | . . . Relay Couplers Released . | . . . Fabnet Peak Effective % . | . . . Robots Rewired . | . . . Allies Hacked . | . . . Hacks Repelled . | . . . Allies | -11 -10 -10 -------- Run | Jun Mat Min Total Allies . | . . . Largest Group . | . . . Highest-Rated Group . | . . . Highest-Rated Ally . | . . . Total Orders . | . . . Ally Attacks . | . . . Total Damage . | . . . Kills . | . . . Allies Corrupted . | . . . Allies Melted . | . . . Intel | -11 -10 -10 ------- Run | Jun Mat Min Robot Analysis Total . | . . . Derelict Logs Recovered 1 | . . 1 Drone Launches . | . . . Drone Recoveries . | . . . Exploration | -11 -10 -10 ------------- Run | Jun Mat Min Turns Passed 1013 | 138 757 118 Spaces Moved 996 | 79 723 194 Core 22 | 17 5 . Treads . | . . . Legs . | . . . Wheels 156 | 62 94 . Hover 818 | . 624 194 Flight . | . . . Fastest Speed 50 | 50 56 56 Average Speed 60 | 80 60 56 Slowest Speed 200 | 100 200 56 Overloaded Moves . | . . . Propulsion Burnouts . | . . . Robots Hopped . | . . . Cave-ins Triggered . | . . . Exploration Rate (%) 48 | 4 98 42 Regions Visited 2 Branch Regions 1 Pre-discovered Areas . | . . . Known Exits Taken 1 | . 1 . Unknown Exits Taken 1 | 1 . . Scrap Searched . | . . . Spaces Dug . | . . . Terrain Destroyed . | . . . Melee . | . . . Projectile . | . . . AOE . | . . . Terrain Rammed . | . . . Walls Destroyed . | . . . Machines Disabled . | . . . Actions | -11 -10 -10 --------- Run | Jun Mat Min Total 1226 | 124 903 199 Wait 49 | . 49 . Move 994 | 78 722 194 Hop . | . . . Pick Up 33 | 18 14 1 Fast Attach 2 | . 2 . Attach 10 | 7 3 . Detach . | . . . Swap 15 | 2 13 . Drop 20 | 3 16 1 Fire 103 | 16 84 3 Melee . | . . . Ram . | . . . Kick . | . . . Crush . | . . . Escape Stasis . | . . . Rewire . | . . . Trap . | . . . Miscellaneous . | . . . Route ------- -11/Junkyard -10/Materials (discovered 5 exits: [*Mat x3] / *Min x2) -10/Mines History --------- Turn | Location | Event 13 | -11/Junkyard | Discovered new exit (range 16) 139 | -11/Junkyard | Entered Materials 224 | -10/Materials | Discovered new exit (range 10) 304 | -10/Materials | Discovered new exit (range 13) 308 | -10/Materials | Build established: Mutant 320 | -10/Materials | Discovered new exit (range 16) 436 | -10/Materials | Discovered new exit (range 11) 523 | -10/Materials | Lost 3 parts (2n1u) 704 | -10/Materials | Discovered new exit (range 14) 830 | -10/Materials | Build established: Scavenger-Mutant 835 | -10/Materials | Repaired Lgt. Assault Rifle 895 | -10/Materials | Identified exit to Mines 896 | -10/Materials | Entered Mines 907 | -10/Mines | A weapon hastily lodged in a ceiling crevice suddenly fell to the ground 917 | -10/Mines | Assembled infested the area 928 | -10/Mines | Core integrity fell below 50% 988 | -10/Mines | Learned Materials trap positions 1012 | -10/Mines | Core integrity fell below 20% 1014 | -10/Mines | Destroyed by as-17891 with Assembled F-torch Last Messages --------------- 00907_ Dropped Visual Processing Unit. 00908_ Acquired Mak. Spear. 00917_ ALERT: Infestation in the mines, dispatching Demolisher response squad. 00956_ Lgt. Ion Engine destroyed. 00956_ System corrupted by crushing effect (+3). 00956_ Knocked back. 00969_ System corrupted: Substantial component data lost. 00988_ Acquired derelict log, extracted data. Data stored: Materials trap records. 00992_ T-07 Excavator is excavating. 00996_ as-46019 destroyed. 00999_ Connecting with Terminal... 00999_ ALERT: Suspicious activity at Terminal M001. Dispatching Investigation squad. 01002_ ,U3NA/6YECMY/=/0JV#VP 01009_ Knocked back. 01011_ Hover Unit destroyed. 01014_ Critical hit (Burn: +80). Map ----- +----------------------------------------------------+ | | | | | | | | | | | | | | | | | | | | | ?????????????????????????????????????? | | ?????????????????????????????????????? | | ?????????????????????????????????????? | | ?????????????????????????????????????? | | ?????????????????????????????????????? | | ?????????????????????????????????????? | | ?????????????????????????????????????? | | ?????????????????????????????????????? | | ???????????????????#####?????????????? | | ???????????????????# #?????????????? | | ???????????????????## #############?? | | ????????????????????# ## a #?? | | ????????????????????# ## a a #?? | | ????????????????????# %#T a""" """ #?? | | ??????????????????###==##a """ """ #?? | | ??????????????????#=% a@a""" """ #?? | | ??????????????????# ##### #?? | | ??????????????????# #???############?? | | ??????????????????# #????????????????? | | ??????????????#$### #????????????????? | | ??????????????# #????????????????? | | ??????????????##### #????????????????? | | ??????????????????# #????????????????? | | ??????????????????# #????????????????? | | ??????????????????# #????????????????? | | ??????????# ###### ## ##???????????? | | ????????# #???????????? | | ???????# #### ## #???????????? | | ?????????????????# #?# #??????????? | | ????????#????????# #?? #??????????? | | ???????## ??????# ##?? #?????????? | | ??????? ??????# #??? #?????????? | | ????? ??# ###???## #???? #?????????? | | ?????? ## ##??# #????? #????????? | | ??????? #??# #?????? ????????? | | ????????# ##?# #?????? ???????? | | ????????# ### #??????? $ ??????? | | ????????# ## ###??????????????? | | ???????## ##?????????????? | | ??????## #?????????????? | +----------------------------------------------------+ Best States ------------- Heat Dissipation 25 Energy Generation 10 Energy Capacity 125 Matter Stores 300 Matter Capacity 300 Sight Range 16 Terrain Scan Density 10 Evasion (%) 53 Item Schematics ----------------- None Robot Schematics ------------------ None Fabricated ------------ Nothing Alien Tech Used ----------------- None Achievements -------------- None Challenges ------------ None Game ------ Seed BiometalShadeTendrils Manual? 0 Play Time 00:20:55 Cumulative 36.4 hours Start 2023.06.09 @ 13:26:23 End 2023.06.09 @ 13:45:16 Sessions 1 Manual Loads 0 Difficulty Rogue Special Mode None Game No. 24 Rogue 24 Adventurer 0 Explorer 0 Win Type - Total 0 Types 0/0/0/0/0/0/0/0/0 Lore% 21 Gallery% 40 Achievement% 23 Wizard Run 0 Options --------- ASCII 0 Keyboard 0 Movement Mouse Keybinds 0 Fullscreen 1 Font 16/SmallcapsGlow Map View 50x54 Tactical HUD 1 Map Filters NONE Filters NONE Steam 1 RUN: 4df23b9c-88c0-4db4-a04f-bc949d17b3d8